fUST/lending_fUST_20250316
["ID","MTS","AMOUNT","RATE_DAILY","PERIOD"]
[356216875,1742082634002,-500.0,8.493e-05,2]
[356216876,1742082634013,-168.55,8.493e-05,2]
[356216877,1742082634024,-500.0,8.493e-05,2]
[356216878,1742082634035,-500.0,8.493e-05,2]
[356216879,1742082634045,-500.0,8.493e-05,2]
[356216880,1742082634056,-500.0,8.493e-05,2]
[356216881,1742082634066,-645.27,8.493e-05,2]
[356216882,1742082634077,-578.2,8.493e-05,2]
[356216883,1742082634087,-500.0,8.493e-05,2]
[356216884,1742082634098,-500.0,8.493e-05,2]
[356216885,1742082634109,-500.0,8.493e-05,2]
[356216886,1742082634120,-396.58,8.493e-05,2]
[356216887,1742082634130,-500.0,8.493e-05,2]
[356216888,1742082634140,-500.0,8.493e-05,2]
[356216889,1742082634150,-500.0,8.493e-05,2]
[356216890,1742082634160,-500.0,8.493e-05,2]
[356216891,1742082634170,-500.0,8.493e-05,2]
[356216892,1742082634180,-560.11,8.493e-05,2]
[356216893,1742082634190,-475.2,8.493e-05,2]
[356216894,1742082634200,-597.68,8.493e-05,2]
[356216895,1742082634210,-500.0,8.493e-05,2]
[356216896,1742082634220,-540.36,8.493e-05,2]
[356216897,1742082634230,-500.0,8.493e-05,2]
[356216898,1742082634240,-500.0,8.493e-05,2]
[356216899,1742082634250,-500.0,8.493e-05,2]
[356216900,1742082634260,-500.0,8.493e-05,2]
[356216901,1742082634270,-500.0,8.493e-05,2]
[356216902,1742082634279,-441.15,8.493e-05,2]
[356216903,1742082634289,-500.0,8.493e-05,2]
[356216904,1742082634299,-500.0,8.493e-05,2]
[356216905,1742082634308,-500.0,8.493e-05,2]
[356216906,1742082634321,-500.0,8.493e-05,2]
[356216907,1742082634331,-500.0,8.493e-05,2]
[356216908,1742082634340,-500.0,8.493e-05,2]
[356216909,1742082634350,-500.0,8.493e-05,2]
[356216910,1742082634360,-364.14,8.493e-05,2]
[356216911,1742082634371,-500.0,8.493e-05,2]
[356216912,1742082634381,-234.49,8.493e-05,2]
[356216913,1742082634392,-3871.4,8.493e-05,2]
[356216914,1742082634403,-864.97,8.493e-05,2]
[356216915,1742082634413,-839.66,8.493e-05,2]
[356216916,1742082634423,-500.0,8.493e-05,2]
[356216917,1742082634433,-586.11,8.493e-05,2]
[356216918,1742082634443,-500.0,8.493e-05,2]
[356216919,1742082634452,-1188.58,8.493e-05,2]
[356216920,1742082634462,-387.0,8.493e-05,2]
[356216921,1742082634472,-500.0,8.493e-05,2]
[356216922,1742082634482,-500.0,8.493e-05,2]
[356216923,1742082634492,-500.0,8.493e-05,2]
[356216924,1742082634502,-500.0,8.493e-05,2]
[356216925,1742082634512,-2428.55,8.493e-05,2]
[356216926,1742082634521,-608.7,8.493e-05,2]
[356216927,1742082634531,-666.19,8.493e-05,2]
[356216928,1742082634540,-500.0,8.493e-05,2]
[356216929,1742082634550,-254.41,8.493e-05,2]
[356216930,1742082634560,-4436.37,8.493e-05,2]
[356216931,1742082634570,-1790.32,8.493e-05,2]
[356216932,1742082634580,-650.14,8.493e-05,2]
[356216933,1742082634589,-1388.71,8.493e-05,2]
[356216934,1742082634599,-500.0,8.493e-05,2]
[356216935,1742082634609,-500.0,8.493e-05,2]
[356216936,1742082634786,-600.17,8.493e-05,2]
[356216937,1742082634798,-1601.82,8.493e-05,2]
[356216938,1742082634808,-500.0,8.493e-05,2]
[356216939,1742082634817,-901.92,8.493e-05,2]
[356216940,1742082634826,-500.0,8.493e-05,2]
[356216941,1742082634836,-563.76,8.493e-05,2]
[356216942,1742082634845,-1241.43,8.493e-05,2]
[356216943,1742082634855,-500.0,8.493e-05,2]
[356216944,1742082634864,-3295.16,8.493e-05,2]
[356216945,1742082634873,-449.6,8.493e-05,2]
[356216946,1742082634883,-500.0,8.493e-05,2]
[356216947,1742082634893,-4722.15335221,8.493e-05,2]
[356216948,1742082634925,-1131.31693403,8.493e-05,2]
[356216950,1742082637676,-3727.18500009,8.493e-05,2]
[356216957,1742082640179,-792.89,8.219e-05,2]
[356216958,1742082640190,-30977.69471367,8.493e-05,2]
[356216959,1742082640200,-407.57,8.493e-05,2]
[356216960,1742082640210,-500.0,8.493e-05,2]
[356216961,1742082640220,-500.0,8.493e-05,2]
[356216962,1742082640230,-275.62,8.493e-05,2]
[356216963,1742082640240,-903.21,8.493e-05,2]
[356216964,1742082640250,-1507.2,8.493e-05,2]
[356216965,1742082640260,-500.0,8.493e-05,2]
[356216966,1742082640270,-500.0,8.493e-05,2]
[356216967,1742082640280,-1587.66,8.493e-05,2]
[356216968,1742082640290,-500.0,8.493e-05,2]
[356216970,1742082640300,-549.29,8.493e-05,2]
[356216971,1742082640310,-500.0,8.493e-05,2]
[356216972,1742082640323,-500.0,8.493e-05,2]
[356216973,1742082640333,-691.04,8.493e-05,2]
[356216974,1742082640342,-3318.23,8.493e-05,2]
[356216975,1742082640352,-1990.33,8.493e-05,2]
[356216976,1742082640363,-500.0,8.493e-05,2]
[356216977,1742082640372,-500.0,8.493e-05,2]
[356216978,1742082640382,-654.09,8.493e-05,2]
[356216979,1742082640392,-667.32,8.493e-05,2]
[356216980,1742082640402,-1526.28,8.493e-05,2]
[356216981,1742082640411,-500.0,8.493e-05,2]
[356216982,1742082640421,-3561.74,8.493e-05,2]
[356216983,1742082640431,-504.76,8.493e-05,2]
[356216984,1742082640440,-840.08,8.493e-05,2]
[356216985,1742082640450,-792.89,8.493e-05,2]
[356216986,1742082640459,-151.0,8.766e-05,2]
[356216987,1742082640469,-500.0,8.767e-05,2]
[356216988,1742082640479,-500.0,8.767e-05,2]
[356216989,1742082640489,-500.0,8.767e-05,2]
[356216990,1742082640499,-500.0,8.767e-05,2]
[356216991,1742082640509,-507.24,8.767e-05,2]
[356216992,1742082640519,-500.0,8.767e-05,2]
[356216993,1742082640528,-500.0,8.767e-05,2]
[356216994,1742082640538,-500.0,8.767e-05,2]
[356216995,1742082640547,-500.0,8.767e-05,2]
[356216996,1742082640557,-500.0,8.767e-05,2]
[356216997,1742082640566,-578.2,8.767e-05,2]
[356216998,1742082640576,-500.0,8.767e-05,2]
[356216999,1742082640585,-500.0,8.767e-05,2]
[356217000,1742082640595,-500.0,8.767e-05,2]
[356217001,1742082640604,-500.0,8.767e-05,2]
[356217002,1742082640613,-500.0,8.767e-05,2]
[356217003,1742082640623,-315.18,8.767e-05,2]
[356217004,1742082640632,-500.0,8.767e-05,2]
[356217005,1742082640641,-500.0,8.767e-05,2]
[356217006,1742082640651,-560.11,8.767e-05,2]
[356217007,1742082640660,-500.0,8.767e-05,2]
[356217008,1742082640670,-540.36,8.767e-05,2]
[356217009,1742082640679,-500.0,8.767e-05,2]
[356217010,1742082640689,-284.2,8.767e-05,2]
[356217011,1742082640698,-480.29,8.767e-05,2]
[356217012,1742082640707,-500.0,8.767e-05,2]
[356217013,1742082640716,-500.0,8.767e-05,2]
[356217014,1742082640726,-500.0,8.767e-05,2]
[356217015,1742082640735,-541.36,8.767e-05,2]
[356217016,1742082640744,-511.33,8.767e-05,2]
[356217017,1742082640753,-500.0,8.767e-05,2]
[356217018,1742082640763,-500.0,8.767e-05,2]
[356217019,1742082640773,-500.0,8.767e-05,2]
[356217020,1742082640783,-500.0,8.767e-05,2]
[356217021,1742082640792,-839.66,8.767e-05,2]
[356217022,1742082640802,-621.88021325,8.767e-05,2]
[356217023,1742082640811,-586.11,8.767e-05,2]
[356217024,1742082640820,-500.0,8.767e-05,2]
[356217025,1742082640830,-1188.58,8.767e-05,2]
[356217026,1742082640839,-500.0,8.767e-05,2]
[356217027,1742082640848,-500.0,8.767e-05,2]
[356217028,1742082640857,-178.70975634,8.767e-05,2]
[356217029,1742082640867,-500.0,8.767e-05,2]
[356217030,1742082640876,-2428.55,8.767e-05,2]
[356217031,1742082640886,-608.7,8.767e-05,2]
[356217032,1742082640895,-666.19,8.767e-05,2]
[356217033,1742082640905,-500.0,8.767e-05,2]
[356217034,1742082640915,-4436.37,8.767e-05,2]
[356217035,1742082640925,-1790.32,8.767e-05,2]
[356217036,1742082640934,-650.14,8.767e-05,2]
[356217037,1742082640944,-1388.71,8.767e-05,2]
[356217038,1742082640953,-500.0,8.767e-05,2]
[356217039,1742082640962,-500.0,8.767e-05,2]
[356217040,1742082640971,-600.17,8.767e-05,2]
[356217041,1742082640982,-1601.82,8.767e-05,2]
[356217042,1742082640991,-500.0,8.767e-05,2]
[356217043,1742082641000,-901.92,8.767e-05,2]
[356217044,1742082641011,-500.0,8.767e-05,2]
[356217045,1742082641020,-1241.43,8.767e-05,2]
[356217046,1742082641029,-380.86,8.767e-05,2]
[356217047,1742082641038,-3295.16,8.767e-05,2]
[356217048,1742082641047,-500.0,8.767e-05,2]
[356217049,1742082641057,-40558.35,8.767e-05,2]
[356217050,1742082641066,-500.0,8.767e-05,2]
[356217051,1742082641075,-500.0,8.767e-05,2]
[356217052,1742082641085,-903.21,8.767e-05,2]
[356217053,1742082641094,-1507.2,8.767e-05,2]
[356217054,1742082641104,-500.0,8.767e-05,2]
[356217055,1742082641113,-150.33,8.767e-05,2]
[356217056,1742082641123,-1587.66,8.767e-05,2]
[356217057,1742082641132,-500.0,8.767e-05,2]
[356217058,1742082641141,-549.29,8.767e-05,2]
[356217059,1742082641151,-500.0,8.767e-05,2]
[356217060,1742082641160,-500.0,8.767e-05,2]
[356217061,1742082641170,-691.04,8.767e-05,2]
[356217062,1742082641179,-3318.23,8.767e-05,2]
[356217063,1742082641189,-1990.33,8.767e-05,2]
[356217064,1742082641198,-305.42,8.767e-05,2]
[356217065,1742082641207,-500.0,8.767e-05,2]
[356217066,1742082641217,-654.09,8.767e-05,2]
[356217067,1742082641226,-667.32,8.767e-05,2]
[356217068,1742082641235,-1526.28,8.767e-05,2]
[356217069,1742082641245,-500.0,8.767e-05,2]
[356217070,1742082641254,-3561.74,8.767e-05,2]
[356217071,1742082641263,-840.08,8.767e-05,2]
[356217072,1742082641272,-792.89,8.767e-05,2]
[356217073,1742082641281,-238.98558183,8.814e-05,2]
[356217074,1742082641290,-353.0,8.983e-05,2]
[356217075,1742082641300,-226.4792915,8.983e-05,2]
[356217076,1742082641309,-491.35027609,8.983e-05,2]
[356217077,1742082641323,-186.9825615,8.99e-05,2]
[356217078,1742082641332,-3358.85616589,9e-05,2]
[356217079,1742082641342,-500.0,9.041e-05,2]
[356217080,1742082641351,-500.0,9.041e-05,2]
[356217081,1742082641361,-500.0,9.041e-05,2]
[356217082,1742082641371,-500.0,9.041e-05,2]
[356217083,1742082641380,-500.0,9.041e-05,2]
[356217084,1742082641390,-500.0,9.041e-05,2]
[356217085,1742082641401,-500.0,9.041e-05,2]
[356217086,1742082641410,-500.0,9.041e-05,2]
[356217087,1742082641419,-500.0,9.041e-05,2]
[356217088,1742082641428,-578.2,9.041e-05,2]
[356217089,1742082641438,-500.0,9.041e-05,2]
[356217090,1742082641448,-337.11514585,9.041e-05,2]
[356217091,1742082641458,-500.0,9.041e-05,2]
[356217092,1742082641467,-500.0,9.041e-05,2]
[356217093,1742082641477,-500.0,9.041e-05,2]
[356217094,1742082641486,-500.0,9.041e-05,2]
[356217095,1742082641495,-560.11,9.041e-05,2]
[356217096,1742082641504,-500.0,9.041e-05,2]
[356217097,1742082641514,-540.36,9.041e-05,2]
[356217098,1742082641523,-500.0,9.041e-05,2]
[356217099,1742082641532,-102.21629408,9.041e-05,2]
[356217113,1742082642966,-500.0,8.219e-05,2]
[356217134,1742083832121,-300.0,8.217e-05,2]
[356217136,1742083832131,-500.0,8.218e-05,2]
[356217138,1742083832141,-180.30638847,8.218e-05,2]
[356217140,1742083832152,-500.0,8.218e-05,2]
[356217142,1742083832162,-500.0,8.218e-05,2]
[356217143,1742083832171,-500.0,8.218e-05,2]
[356217145,1742083832181,-500.0,8.218e-05,2]
[356217147,1742083832191,-500.0,8.218e-05,2]
[356217149,1742083832201,-500.0,8.218e-05,2]
[356217151,1742083832211,-500.0,8.218e-05,2]
[356217153,1742083832221,-500.0,8.218e-05,2]
[356217155,1742083832230,-339.4180647,8.218e-05,2]
[356217157,1742083832240,-500.0,8.219e-05,2]
[356217159,1742083832250,-500.0,8.219e-05,2]
[356217161,1742083832259,-500.0,8.219e-05,2]
[356217162,1742083832268,-500.0,8.219e-05,2]
[356217164,1742083832280,-507.77971639,8.219e-05,2]
[356217166,1742083832290,-649.76,8.219e-05,2]
[356217168,1742083832301,-500.0,8.219e-05,2]
[356217170,1742083832311,-500.0,8.219e-05,2]
[356217172,1742083832322,-500.0,8.219e-05,2]
[356217175,1742083832332,-500.0,8.219e-05,2]
[356217178,1742083832342,-500.0,8.219e-05,2]
[356217181,1742083832352,-500.0,8.219e-05,2]
[356217184,1742083832362,-500.0,8.219e-05,2]
[356217187,1742083832371,-577.71,8.219e-05,2]
[356217189,1742083832381,-500.0,8.219e-05,2]
[356217191,1742083832390,-500.0,8.219e-05,2]
[356217193,1742083832401,-500.0,8.219e-05,2]
[356217195,1742083832410,-604.66,8.219e-05,2]
[356217196,1742083832420,-500.0,8.219e-05,2]
[356217198,1742083832430,-500.0,8.219e-05,2]
[356217200,1742083832439,-500.0,8.219e-05,2]
[356217202,1742083832448,-572.33,8.219e-05,2]
[356217204,1742083832458,-384.78870974,8.219e-05,2]
[356217206,1742083832468,-500.0,8.219e-05,2]
[356217208,1742083832478,-500.0,8.219e-05,2]
[356217210,1742083832488,-500.0,8.219e-05,2]
[356217211,1742083832497,-637.69,8.219e-05,2]
[356217213,1742083832506,-500.0,8.219e-05,2]
[356217215,1742083832516,-500.0,8.219e-05,2]
[356217217,1742083832526,-500.0,8.219e-05,2]
[356217219,1742083832536,-502.21391993,8.219e-05,2]
[356217221,1742083832545,-500.0,8.219e-05,2]
[356217223,1742083832555,-500.0,8.219e-05,2]
[356217225,1742083832565,-500.0,8.219e-05,2]
[356217226,1742083832574,-500.0,8.219e-05,2]
[356217228,1742083832584,-500.0,8.219e-05,2]
[356217230,1742083832594,-500.0,8.219e-05,2]
[356217232,1742083832604,-500.0,8.219e-05,2]
[356217233,1742083832613,-500.0,8.219e-05,2]
[356217234,1742083832622,-500.0,8.219e-05,2]
[356217235,1742083832632,-500.0,8.219e-05,2]
[356217237,1742083832641,-500.0,8.219e-05,2]
[356217238,1742083832651,-619.29,8.219e-05,2]
[356217239,1742083832660,-500.0,8.219e-05,2]
[356217240,1742083832670,-500.0,8.219e-05,2]
[356217241,1742083832681,-500.0,8.219e-05,2]
[356217242,1742083832690,-500.0,8.219e-05,2]
[356217243,1742083832701,-500.0,8.219e-05,2]
[356217244,1742083832710,-500.0,8.219e-05,2]
[356217245,1742083832720,-500.0,8.219e-05,2]
[356217246,1742083832730,-515.84,8.219e-05,2]
[356217247,1742083832741,-500.0,8.219e-05,2]
[356217248,1742083832751,-500.0,8.219e-05,2]
[356217249,1742083832760,-500.0,8.219e-05,2]
[356217250,1742083832769,-500.0,8.219e-05,2]
[356217251,1742083832779,-500.0,8.219e-05,2]
[356217252,1742083832790,-516.79,8.219e-05,2]
[356217253,1742083832799,-500.0,8.219e-05,2]
[356217254,1742083832809,-500.0,8.219e-05,2]
[356217255,1742083832819,-500.0,8.219e-05,2]
[356217256,1742083832829,-500.0,8.219e-05,2]
[356217257,1742083832838,-500.0,8.219e-05,2]
[356217258,1742083832848,-500.0,8.219e-05,2]
[356217259,1742083832858,-500.0,8.219e-05,2]
[356217260,1742083832867,-515.8,8.219e-05,2]
[356217261,1742083832877,-589.69,8.219e-05,2]
[356217262,1742083832887,-500.0,8.219e-05,2]
[356217263,1742083832897,-500.0,8.219e-05,2]
[356217264,1742083832906,-2070.59,8.219e-05,2]
[356217265,1742083832916,-500.0,8.219e-05,2]
[356217266,1742083832927,-500.0,8.219e-05,2]
[356217267,1742083833137,-500.0,8.219e-05,2]
[356217268,1742083833150,-500.0,8.219e-05,2]
[356217269,1742083833160,-500.0,8.219e-05,2]
[356217270,1742083833170,-500.0,8.219e-05,2]
[356217271,1742083833180,-500.0,8.219e-05,2]
[356217272,1742083833190,-500.0,8.219e-05,2]
[356217273,1742083833200,-500.0,8.219e-05,2]
[356217274,1742083833210,-3890.62,8.219e-05,2]
[356217275,1742083833219,-500.0,8.219e-05,2]
[356217276,1742083833230,-1561.73,8.219e-05,2]
[356217277,1742083833240,-500.0,8.219e-05,2]
[356217278,1742083833250,-500.0,8.219e-05,2]
[356217279,1742083833260,-609.99,8.219e-05,2]
[356217280,1742083833271,-4173.38,8.219e-05,2]
[356217281,1742083833281,-500.0,8.219e-05,2]
[356217282,1742083833291,-1134.11,8.219e-05,2]
[356217283,1742083833301,-530.21,8.219e-05,2]
[356217284,1742083833311,-500.0,8.219e-05,2]
[356217285,1742083833322,-500.0,8.219e-05,2]
[356217286,1742083833332,-500.0,8.219e-05,2]
[356217287,1742083833342,-500.0,8.219e-05,2]
[356217288,1742083833352,-500.0,8.219e-05,2]
[356217289,1742083833362,-500.0,8.219e-05,2]
[356217290,1742083833372,-500.0,8.219e-05,2]
[356217291,1742083833382,-500.0,8.219e-05,2]
[356217292,1742083833392,-337.15,8.219e-05,2]
[356217293,1742083833401,-560.7,8.219e-05,2]
[356217294,1742083833411,-500.0,8.219e-05,2]
[356217295,1742083833421,-500.0,8.219e-05,2]
[356217296,1742083833430,-500.0,8.219e-05,2]
[356217297,1742083833440,-617.47,8.219e-05,2]
[356217298,1742083833450,-500.0,8.219e-05,2]
[356217299,1742083833460,-570.98,8.219e-05,2]
[356217300,1742083833469,-569.29,8.219e-05,2]
[356217301,1742083833478,-500.0,8.219e-05,2]
[356217302,1742083833489,-500.0,8.219e-05,2]
[356217303,1742083833499,-500.0,8.219e-05,2]
[356217304,1742083833509,-500.0,8.219e-05,2]
[356217305,1742083833518,-570.75,8.219e-05,2]
[356217306,1742083833527,-500.0,8.219e-05,2]
[356217307,1742083833537,-516.41,8.219e-05,2]
[356217308,1742083833547,-649.45,8.219e-05,2]
[356217309,1742083833556,-500.0,8.219e-05,2]
[356217310,1742083833566,-563.67,8.219e-05,2]
[356217311,1742083833575,-2301.23,8.219e-05,2]
[356217312,1742083833585,-500.0,8.219e-05,2]
[356217313,1742083833594,-526.73,8.219e-05,2]
[356217314,1742083833604,-4418.14,8.219e-05,2]
[356217315,1742083833613,-500.0,8.219e-05,2]
[356217316,1742083833624,-500.0,8.219e-05,2]
[356217317,1742083833634,-500.0,8.219e-05,2]
[356217318,1742083833644,-500.0,8.219e-05,2]
[356217319,1742083833653,-500.0,8.219e-05,2]
[356217320,1742083833663,-1730.5,8.219e-05,2]
[356217321,1742083833674,-1778.44,8.219e-05,2]
[356217322,1742083833683,-500.0,8.219e-05,2]
[356217323,1742083833693,-752.09,8.219e-05,2]
[356217324,1742083833703,-531.66,8.219e-05,2]
[356217325,1742083833713,-500.0,8.219e-05,2]
[356217326,1742083833722,-500.0,8.219e-05,2]
[356217327,1742083833731,-500.0,8.219e-05,2]
[356217328,1742083833741,-1457.96,8.219e-05,2]
[356217329,1742083833752,-599.67,8.219e-05,2]
[356217330,1742083833761,-500.0,8.219e-05,2]
[356217331,1742083833771,-500.0,8.219e-05,2]
[356217332,1742083833780,-500.0,8.219e-05,2]
[356217333,1742083833789,-500.0,8.219e-05,2]
[356217334,1742083833799,-500.0,8.219e-05,2]
[356217335,1742083833808,-534.27,8.219e-05,2]
[356217336,1742083833819,-500.0,8.219e-05,2]
[356217337,1742083833828,-500.0,8.219e-05,2]
[356217338,1742083833837,-500.0,8.219e-05,2]
[356217339,1742083833847,-500.0,8.219e-05,2]
[356217340,1742083833858,-500.0,8.219e-05,2]
[356217341,1742083833868,-1462.51,8.219e-05,2]
[356217342,1742083833877,-500.0,8.219e-05,2]
[356217343,1742083833887,-2903.45,8.219e-05,2]
[356217344,1742083833897,-500.0,8.219e-05,2]
[356217345,1742083833907,-500.0,8.219e-05,2]
[356217346,1742083833916,-500.0,8.219e-05,2]
[356217347,1742083833926,-1086.26,8.219e-05,2]
[356217348,1742083833936,-500.0,8.219e-05,2]
[356217349,1742083833945,-589.76,8.219e-05,2]
[356217350,1742083833954,-500.0,8.219e-05,2]
[356217351,1742083833967,-500.0,8.219e-05,2]
[356217352,1742083833976,-500.0,8.219e-05,2]
[356217353,1742083833986,-500.0,8.219e-05,2]
[356217354,1742083833996,-3040.53,8.219e-05,2]
[356217355,1742083834007,-500.0,8.219e-05,2]
[356217356,1742083834017,-500.0,8.219e-05,2]
[356217357,1742083834025,-49569.86,8.219e-05,2]
[356217358,1742083834035,-784.48,8.219e-05,2]
[356217359,1742083834046,-500.0,8.219e-05,2]
[356217360,1742083834056,-758.55,8.219e-05,2]
[356217361,1742083834065,-500.0,8.219e-05,2]
[356217362,1742083834076,-1437.37,8.219e-05,2]
[356217363,1742083834085,-439.64046576,8.219e-05,2]
[356217364,1742083834095,-790.31,8.219e-05,2]
[356217365,1742083834104,-800.11,8.219e-05,2]
[356217366,1742083834114,-500.0,8.219e-05,2]
[356217367,1742083834123,-500.0,8.219e-05,2]
[356217368,1742083834132,-500.0,8.219e-05,2]
[356217369,1742083834142,-500.0,8.219e-05,2]
[356217370,1742083834152,-500.0,8.493e-05,2]
[356217371,1742083834163,-500.0,8.493e-05,2]
[356217372,1742083834172,-535.51,8.493e-05,2]
[356217373,1742083834182,-604.66,8.493e-05,2]
[356217374,1742083834192,-500.0,8.493e-05,2]
[356217375,1742083834201,-572.33,8.493e-05,2]
[356217376,1742083834211,-280.13,8.493e-05,2]
[356217377,1742083834220,-500.0,8.493e-05,2]
[356217378,1742083834230,-637.69,8.493e-05,2]
[356217379,1742083834240,-500.0,8.493e-05,2]
[356217380,1742083834250,-500.0,8.493e-05,2]
[356217381,1742083834260,-500.0,8.493e-05,2]
[356217382,1742083834270,-500.0,8.493e-05,2]
[356217383,1742083834279,-500.0,8.493e-05,2]
[356217384,1742083834288,-619.29,8.493e-05,2]
[356217385,1742083834297,-500.0,8.493e-05,2]
[356217386,1742083834307,-500.0,8.493e-05,2]
[356217387,1742083834317,-500.0,8.493e-05,2]
[356217388,1742083834326,-500.0,8.493e-05,2]
[356217389,1742083834335,-500.0,8.493e-05,2]
[356217390,1742083834345,-500.0,8.493e-05,2]
[356217391,1742083834354,-260.51,8.493e-05,2]
[356217392,1742083834363,-500.0,8.493e-05,2]
[356217393,1742083834373,-398.68,8.493e-05,2]
[356217394,1742083834382,-2070.59,8.493e-05,2]
[356217395,1742083834391,-500.0,8.493e-05,2]
[356217396,1742083834401,-392.1,8.493e-05,2]
[356217397,1742083834411,-500.0,8.493e-05,2]
[356217398,1742083834421,-3890.62,8.493e-05,2]
[356217399,1742083834431,-940.90954869,8.493e-05,2]
[356217407,1742083837888,-620.82045131,8.493e-05,2]
[356217408,1742083837898,-1116.00527727,8.493e-05,2]
[356217409,1742083837910,-3057.37472273,8.493e-05,2]
[356217410,1742083837919,-1134.11,8.493e-05,2]
[356217411,1742083837930,-500.0,8.493e-05,2]
[356217412,1742083837940,-174.56,8.493e-05,2]
[356217413,1742083837949,-617.47,8.493e-05,2]
[356217414,1742083837960,-570.98,8.493e-05,2]
[356217415,1742083837974,-304.71,8.493e-05,2]
[356217416,1742083837984,-500.0,8.493e-05,2]
[356217417,1742083837994,-649.45,8.493e-05,2]
[356217419,1742083838004,-491.44527728,8.493e-05,2]
[356217421,1742083838018,-1809.78472272,8.493e-05,2]
[356217423,1742083838027,-500.0,8.493e-05,2]
[356217425,1742083838036,-183.29789743,8.493e-05,2]
[356217484,1742083846140,-1988.07,8.219e-05,2]
[356217485,1742083846151,-329.47,8.219e-05,2]
[356217486,1742083846161,-668.95999998,8.219e-05,2]
[356217487,1742083848913,-200.0,0.0001872,120]
[356217488,1742083863344,500.0,0.00014001,30]
[356217489,1742083912137,500.0,0.00014001,30]
[356217490,1742083934174,500.0,0.00014001,30]
[356217491,1742083950133,500.0,0.00014001,30]
[356217492,1742083961714,500.0,0.00014001,30]
[356217493,1742083974240,500.0,0.00014001,30]
[356217494,1742083988019,500.0,0.00014001,30]
[356217495,1742084001740,500.0,0.00014001,30]
[356217496,1742084013935,500.0,0.00014001,30]
[356217497,1742084026407,500.0,0.00014001,30]
[356217498,1742084039240,500.0,0.00014001,30]
[356217499,1742084051774,500.0,0.00014001,30]
[356217500,1742084062453,500.0,0.00014001,30]
[356217501,1742084073895,500.0,0.00014001,30]
[356217502,1742084086830,500.0,0.00014001,30]
[356217503,1742084097129,500.0,0.00014001,30]
[356217504,1742084123726,424.2,0.00014001,30]
[356217505,1742084310798,200.0,0.00013802,120]
[356217506,1742084541624,341.3627157,7.464e-05,2]
[356217517,1742084970926,200.0,0.00015266,120]
[356217539,1742085032216,-476.21447193,8.218e-05,2]
[356217540,1742085032226,-482.15756275,8.218e-05,2]
[356217541,1742085032235,-300.0,8.218e-05,2]
[356217542,1742085032245,-500.0,8.219e-05,2]
[356217543,1742085032255,-500.0,8.219e-05,2]
[356217544,1742085032266,-500.0,8.219e-05,2]
[356217545,1742085032277,-411.08893025,8.219e-05,2]
[356217546,1742085032312,-88.91106975,8.219e-05,2]
[356217547,1742085032324,-500.0,8.219e-05,2]
[356217548,1742085032335,-500.0,8.219e-05,2]
[356217549,1742085032345,-500.0,8.219e-05,2]
[356217550,1742085032356,-500.0,8.219e-05,2]
[356217551,1742085032366,-500.0,8.219e-05,2]
[356217552,1742085032376,-500.0,8.219e-05,2]
[356217553,1742085032385,-500.0,8.219e-05,2]
[356217554,1742085032395,-150.64,8.219e-05,2]
[356217555,1742085032405,-336.4904236,8.219e-05,2]
[356217556,1742085032415,-500.0,8.219e-05,2]
[356217557,1742085032425,-500.0,8.219e-05,2]
[356217558,1742085032434,-500.0,8.219e-05,2]
[356217559,1742085032444,-500.0,8.219e-05,2]
[356217560,1742085032454,-500.0,8.219e-05,2]
[356217561,1742085032464,-500.0,8.219e-05,2]
[356217562,1742085032474,-527.14,8.219e-05,2]
[356217563,1742085032483,-500.0,8.219e-05,2]
[356217564,1742085032493,-500.0,8.219e-05,2]
[356217565,1742085032503,-500.0,8.219e-05,2]